[Event "Titled Tuesday Blitz November 01 Early 2022"]
[White "Stribuk, Artiom"]
[Black "Chernobay, Artem"]
[WhiteFideId "13515659"]
[BlackFideId "4167406"]
[WhiteElo "2279"]
[BlackElo "2473"]
[Result "1-0"]
[Round "08"]
[TimeControl "180+1"]
[Date "2022.11.01"]
[WhiteClock "0:00:07"]
[BlackClock "0:00:08"]

1. d4 {[%clk 0:03:00]}  Nf6 {[%clk 0:02:58]} 2. c4 {[%clk 0:03:00]}  e6 {[%clk 0:02:58]} 3. g3 {[%clk 0:03:00]}  d5 {[%clk 0:02:58]} 4. Nf3 {[%clk 0:03:00]}  dxc4 {[%clk 0:02:58]} 5. Bg2 {[%clk 0:03:00]}  Nc6 {[%clk 0:02:58]} 6. Qa4 {[%clk 0:03:00]}  Bb4+ {[%clk 0:02:57]} 7. Bd2 {[%clk 0:03:01]}  Nd5 {[%clk 0:02:57]} 8. a3 {[%clk 0:02:59]}  Bxd2+ {[%clk 0:02:56]} 9. Nbxd2 {[%clk 0:02:45]}  c3 {[%clk 0:02:55]} 10. bxc3 {[%clk 0:02:44]}  Nxc3 {[%clk 0:02:56]} 11. Qc2 {[%clk 0:02:44]}  Nd5 {[%clk 0:02:56]} 12. O-O {[%clk 0:02:44]}  O-O {[%clk 0:02:51]} 13. Rac1 {[%clk 0:02:36]}  Nde7 {[%clk 0:02:49]} 14. e3 {[%clk 0:02:27]}  Bd7 {[%clk 0:02:38]} 15. Ne4 {[%clk 0:02:16]}  b6 {[%clk 0:02:06]} 16. Neg5 {[%clk 0:02:10]}  Ng6 {[%clk 0:01:56]} 17. h4 {[%clk 0:02:01]}  h6 {[%clk 0:01:38]} 18. Ne4 {[%clk 0:01:59]}  Rc8 {[%clk 0:01:33]} 19. Rfd1 {[%clk 0:01:54]}  Nge7 {[%clk 0:01:27]} 20. Qb1 {[%clk 0:01:31]}  f6 {[%clk 0:01:15]} 21. Qa2 {[%clk 0:01:12]}  Kh8 {[%clk 0:01:12]} 22. Bh3 {[%clk 0:01:03]}  Nd5 {[%clk 0:01:09]} 23. Nc3 {[%clk 0:00:55]}  Nce7 {[%clk 0:01:04]} 24. Ne2 {[%clk 0:00:55]}  c6 {[%clk 0:00:56]} 25. e4 {[%clk 0:00:53]}  Nc7 {[%clk 0:00:56]} 26. Nf4 {[%clk 0:00:54]}  f5 {[%clk 0:00:43]} 27. exf5 {[%clk 0:00:36]}  exf5 {[%clk 0:00:40]} 28. Ne5 {[%clk 0:00:36]}  Be8 {[%clk 0:00:40]} 29. d5 {[%clk 0:00:28]}  cxd5 {[%clk 0:00:31]} 30. Qb2 {[%clk 0:00:23]}  Qd6 {[%clk 0:00:30]} 31. h5 {[%clk 0:00:22]}  Kh7 {[%clk 0:00:28]} 32. Re1 {[%clk 0:00:18]}  Bd7 {[%clk 0:00:27]} 33. Nxd7 {[%clk 0:00:16]}  Qxd7 {[%clk 0:00:27]} 34. Qe5 {[%clk 0:00:13]}  Rf7 {[%clk 0:00:24]} 35. Nd3 {[%clk 0:00:07]}  Ne8 {[%clk 0:00:21]} 36. Rxc8 {[%clk 0:00:07]}  Qxc8 {[%clk 0:00:22]} 37. Qd4 {[%clk 0:00:06]}  Nf6 {[%clk 0:00:20]} 38. Ne5 {[%clk 0:00:06]}  Rf8 {[%clk 0:00:20]} 39. Nf3 {[%clk 0:00:04]}  Nc6 {[%clk 0:00:18]} 40. Qh4 {[%clk 0:00:03]}  Ne4 {[%clk 0:00:16]} 41. Rc1 {[%clk 0:00:03]}  Qd7 {[%clk 0:00:15]} 42. Qf4 {[%clk 0:00:03]}  Nd8 {[%clk 0:00:12]} 43. Nh4 {[%clk 0:00:03]}  Nd6 {[%clk 0:00:08]} 44. Rd1 {[%clk 0:00:04]}  Ne6 {[%clk 0:00:09]} 45. Qe5 {[%clk 0:00:04]}  d4 {[%clk 0:00:09]} 46. Ng6 {[%clk 0:00:05]}  Rc8 {[%clk 0:00:08]} 47. Re1 {[%clk 0:00:05]}  Rc5 {[%clk 0:00:08]} 48. Qxe6 {[%clk 0:00:06]}  Qxe6 {[%clk 0:00:07]} 49. Rxe6 {[%clk 0:00:07]}  d3 {[%clk 0:00:08]} 50. Re8 {[%clk 0:00:07]}  d2 {[%clk 0:00:08]} 51. Rh8# {[%clk 0:00:07]} 1-0


[Site "https://www.chess.com"]

[Event "Titled Tuesday Blitz November 01 Early 2022"]
[White "Tarasova, Viktoriya"]
[Black "Mitrovic, Darko R"]
[WhiteFideId "4175840"]
[BlackFideId "927023"]
[WhiteElo "2182"]
[BlackElo "2150"]
[Result "1-0"]
[Round "08"]
[TimeControl "180+1"]
[Date "2022.11.02"]
[WhiteClock "0:00:54"]
[BlackClock "0:00:18"]

1. d4 {[%clk 0:03:00]}  e6 {[%clk 0:02:59]} 2. c4 {[%clk 0:03:00]}  Nf6 {[%clk 0:02:59]} 3. Nc3 {[%clk 0:03:00]}  Bb4 {[%clk 0:02:59]} 4. Nf3 {[%clk 0:03:00]}  Bxc3+ {[%clk 0:03:00]} 5. bxc3 {[%clk 0:03:00]}  d6 {[%clk 0:03:00]} 6. Nd2 {[%clk 0:02:58]}  e5 {[%clk 0:02:54]} 7. e4 {[%clk 0:02:57]}  O-O {[%clk 0:02:52]} 8. Bd3 {[%clk 0:02:56]}  c5 {[%clk 0:02:52]} 9. d5 {[%clk 0:02:54]}  Nbd7 {[%clk 0:02:43]} 10. O-O {[%clk 0:02:54]}  Re8 {[%clk 0:02:36]} 11. Re1 {[%clk 0:02:51]}  Nf8 {[%clk 0:02:36]} 12. Nf1 {[%clk 0:02:51]}  Ng6 {[%clk 0:02:35]} 13. g3 {[%clk 0:02:42]}  Bd7 {[%clk 0:02:25]} 14. Ne3 {[%clk 0:02:36]}  Rb8 {[%clk 0:02:16]} 15. a4 {[%clk 0:02:35]}  h6 {[%clk 0:02:11]} 16. a5 {[%clk 0:02:30]}  Qc7 {[%clk 0:02:04]} 17. Qf3 {[%clk 0:02:25]}  b6 {[%clk 0:01:47]} 18. axb6 {[%clk 0:02:23]}  Rxb6 {[%clk 0:01:47]} 19. Nf5 {[%clk 0:02:10]}  Bxf5 {[%clk 0:01:43]} 20. exf5 {[%clk 0:02:10]}  Ne7 {[%clk 0:01:40]} 21. g4 {[%clk 0:02:07]}  Rbb8 {[%clk 0:01:18]} 22. h4 {[%clk 0:02:03]}  Nh7 {[%clk 0:01:02]} 23. g5 {[%clk 0:02:02]}  hxg5 {[%clk 0:01:00]} 24. hxg5 {[%clk 0:02:02]}  Qd7 {[%clk 0:00:52]} 25. Kg2 {[%clk 0:01:53]}  f6 {[%clk 0:00:43]} 26. g6 {[%clk 0:01:46]}  Ng5 {[%clk 0:00:43]} 27. Bxg5 {[%clk 0:01:44]}  fxg5 {[%clk 0:00:42]} 28. Rh1 {[%clk 0:01:35]}  g4 {[%clk 0:00:31]} 29. Qxg4 {[%clk 0:01:32]}  Kf8 {[%clk 0:00:30]} 30. Rh8+ {[%clk 0:01:01]}  Ng8 {[%clk 0:00:30]} 31. Qh4 {[%clk 0:01:00]}  Qe7 {[%clk 0:00:19]} 32. Rxg8+ {[%clk 0:00:54]}  Kxg8 {[%clk 0:00:18]} 33. Qh7+ {[%clk 0:00:54]}  Kf8 {[%clk 0:00:18]} 34. Qh8# {[%clk 0:00:54]} 1-0


[Site "https://www.chess.com"]

[Event "Titled Tuesday Blitz November 01 Early 2022"]
[White "Terzi, Alexei"]
[Black "Malyi, Viacheslav"]
[WhiteFideId "13505076"]
[BlackFideId "14123983"]
[WhiteElo "2172"]
[BlackElo "2291"]
[Result "1/2-1/2"]
[Round "08"]
[TimeControl "180+1"]
[Date "2022.11.02"]
[WhiteClock "0:00:05"]
[BlackClock "0:00:12"]

1. e4 {[%clk 0:03:00]}  e5 {[%clk 0:02:55]} 2. Nf3 {[%clk 0:02:59]}  Nc6 {[%clk 0:02:55]} 3. d4 {[%clk 0:03:00]}  exd4 {[%clk 0:02:56]} 4. Nxd4 {[%clk 0:03:00]}  Nf6 {[%clk 0:02:56]} 5. Nxc6 {[%clk 0:03:00]}  dxc6 {[%clk 0:02:56]} 6. Qxd8+ {[%clk 0:02:59]}  Kxd8 {[%clk 0:02:57]} 7. Bg5 {[%clk 0:02:57]}  h6 {[%clk 0:02:56]} 8. Bxf6+ {[%clk 0:02:54]}  gxf6 {[%clk 0:02:57]} 9. Bd3 {[%clk 0:02:54]}  Be6 {[%clk 0:02:57]} 10. Nd2 {[%clk 0:02:49]}  Bc5 {[%clk 0:02:49]} 11. Nf1 {[%clk 0:02:47]}  Ke7 {[%clk 0:02:47]} 12. Ke2 {[%clk 0:02:47]}  h5 {[%clk 0:02:44]} 13. h4 {[%clk 0:02:42]}  a5 {[%clk 0:02:43]} 14. Ne3 {[%clk 0:02:38]}  Rag8 {[%clk 0:02:41]} 15. g3 {[%clk 0:02:38]}  Bg4+ {[%clk 0:02:40]} 16. Nxg4 {[%clk 0:02:32]}  Rxg4 {[%clk 0:02:28]} 17. Kf3 {[%clk 0:02:28]}  Rgg8 {[%clk 0:02:27]} 18. Rad1 {[%clk 0:02:28]}  Rd8 {[%clk 0:02:25]} 19. Bc4 {[%clk 0:02:28]}  Rxd1 {[%clk 0:02:25]} 20. Rxd1 {[%clk 0:02:28]}  Rg8 {[%clk 0:02:21]} 21. a4 {[%clk 0:02:24]}  Rh8 {[%clk 0:02:20]} 22. c3 {[%clk 0:02:21]}  Rg8 {[%clk 0:02:19]} 23. Rd3 {[%clk 0:02:15]}  Bd6 {[%clk 0:02:18]} 24. Bb3 {[%clk 0:02:12]}  Be5 {[%clk 0:02:10]} 25. Bd1 {[%clk 0:02:10]}  Rh8 {[%clk 0:02:09]} 26. Ke2 {[%clk 0:02:06]}  Bd6 {[%clk 0:02:06]} 27. Rf3 {[%clk 0:02:06]}  b5 {[%clk 0:02:00]} 28. Rf5 {[%clk 0:02:00]}  Be5 {[%clk 0:01:39]} 29. Kd2 {[%clk 0:01:50]}  Rb8 {[%clk 0:01:24]} 30. Kc1 {[%clk 0:01:40]}  b4 {[%clk 0:01:11]} 31. Kc2 {[%clk 0:01:24]}  Rd8 {[%clk 0:00:58]} 32. Bxh5 {[%clk 0:01:22]}  c5 {[%clk 0:00:50]} 33. f4 {[%clk 0:00:58]}  Bd6 {[%clk 0:00:50]} 34. e5 {[%clk 0:00:52]}  fxe5 {[%clk 0:00:50]} 35. Rxf7+ {[%clk 0:00:48]}  Ke6 {[%clk 0:00:51]} 36. f5+ {[%clk 0:00:48]}  Kd5 {[%clk 0:00:50]} 37. g4 {[%clk 0:00:28]}  c4 {[%clk 0:00:50]} 38. g5 {[%clk 0:00:26]}  b3+ {[%clk 0:00:50]} 39. Kc1 {[%clk 0:00:24]}  Ke4 {[%clk 0:00:50]} 40. Be2 {[%clk 0:00:20]}  Bc5 {[%clk 0:00:41]} 41. g6 {[%clk 0:00:10]}  Be3+ {[%clk 0:00:40]} 42. Kb1 {[%clk 0:00:10]}  Rd2 {[%clk 0:00:41]} 43. Bg4 {[%clk 0:00:10]}  Rg2 {[%clk 0:00:29]} 44. Bd1 {[%clk 0:00:10]}  Rd2 {[%clk 0:00:27]} 45. Rd7 {[%clk 0:00:10]}  Bd4 {[%clk 0:00:26]} 46. Bh5 {[%clk 0:00:06]}  Rg2 {[%clk 0:00:17]} 47. Kc1 {[%clk 0:00:05]}  Be3+ {[%clk 0:00:11]} 48. Kb1 {[%clk 0:00:06]}  Bd4 {[%clk 0:00:11]} 49. Kc1 {[%clk 0:00:05]}  Be3+ {[%clk 0:00:11]} 50. Kb1 {[%clk 0:00:05]}  Bd4 {[%clk 0:00:12]} 1/2-1/2


[Site "https://www.chess.com"]

[Event "Titled Tuesday Blitz November 01 Early 2022"]
[White "Tleptsok, Ruslan"]
[Black "Kowalczyk, Pawel"]
[WhiteFideId "24104485"]
[BlackFideId "1130641"]
[WhiteElo "2130"]
[BlackElo "2324"]
[Result "1/2-1/2"]
[Round "08"]
[TimeControl "180+1"]
[Date "2022.11.02"]
[WhiteClock "0:00:58"]
[BlackClock "0:00:37"]

1. e4 {[%clk 0:03:00]}  c5 {[%clk 0:02:59]} 2. Nf3 {[%clk 0:03:01]}  e6 {[%clk 0:02:59]} 3. c3 {[%clk 0:03:01]}  Nf6 {[%clk 0:02:55]} 4. e5 {[%clk 0:03:01]}  Nd5 {[%clk 0:02:56]} 5. d4 {[%clk 0:03:01]}  d6 {[%clk 0:02:54]} 6. exd6 {[%clk 0:03:00]}  Bxd6 {[%clk 0:02:53]} 7. Bd3 {[%clk 0:03:00]}  Nc6 {[%clk 0:02:50]} 8. O-O {[%clk 0:02:59]}  cxd4 {[%clk 0:02:50]} 9. cxd4 {[%clk 0:02:59]}  h6 {[%clk 0:02:48]} 10. Nc3 {[%clk 0:02:59]}  Nce7 {[%clk 0:02:46]} 11. Re1 {[%clk 0:02:56]}  O-O {[%clk 0:02:46]} 12. Ne4 {[%clk 0:02:55]}  Bf4 {[%clk 0:02:44]} 13. g3 {[%clk 0:02:53]}  Bxc1 {[%clk 0:02:44]} 14. Rxc1 {[%clk 0:02:53]}  b6 {[%clk 0:02:40]} 15. Ne5 {[%clk 0:02:50]}  Bb7 {[%clk 0:02:40]} 16. a3 {[%clk 0:02:50]}  Rc8 {[%clk 0:02:40]} 17. Rxc8 {[%clk 0:02:48]}  Qxc8 {[%clk 0:02:39]} 18. Nd6 {[%clk 0:02:47]}  Qc7 {[%clk 0:02:34]} 19. Nxb7 {[%clk 0:02:43]}  Qxb7 {[%clk 0:02:34]} 20. Qf3 {[%clk 0:02:43]}  Qc7 {[%clk 0:02:28]} 21. Qe4 {[%clk 0:02:34]}  Nf6 {[%clk 0:02:27]} 22. Qf4 {[%clk 0:02:34]}  Ned5 {[%clk 0:02:12]} 23. Qd2 {[%clk 0:02:30]}  Rc8 {[%clk 0:02:10]} 24. h4 {[%clk 0:02:27]}  Qd6 {[%clk 0:02:05]} 25. Rc1 {[%clk 0:02:25]}  Rxc1+ {[%clk 0:02:04]} 26. Qxc1 {[%clk 0:02:25]}  Qc7 {[%clk 0:02:04]} 27. Qxc7 {[%clk 0:02:22]}  Nxc7 {[%clk 0:02:04]} 28. Nc6 {[%clk 0:02:21]}  a5 {[%clk 0:02:01]} 29. Kf1 {[%clk 0:02:17]}  Kf8 {[%clk 0:02:00]} 30. Ke2 {[%clk 0:02:15]}  Nfd5 {[%clk 0:01:56]} 31. Be4 {[%clk 0:02:10]}  f6 {[%clk 0:01:48]} 32. Bxd5 {[%clk 0:02:05]}  exd5 {[%clk 0:01:40]} 33. b4 {[%clk 0:02:00]}  axb4 {[%clk 0:01:39]} 34. Nxb4 {[%clk 0:01:59]}  Ke7 {[%clk 0:01:38]} 35. Kd3 {[%clk 0:01:55]}  h5 {[%clk 0:01:35]} 36. f3 {[%clk 0:01:53]}  g5 {[%clk 0:01:29]} 37. f4 {[%clk 0:01:51]}  gxh4 {[%clk 0:01:25]} 38. gxh4 {[%clk 0:01:51]}  Ke6 {[%clk 0:01:25]} 39. Ke3 {[%clk 0:01:49]}  Nb5 {[%clk 0:01:25]} 40. f5+ {[%clk 0:01:48]}  Kd6 {[%clk 0:01:18]} 41. a4 {[%clk 0:01:46]}  Nc3 {[%clk 0:01:18]} 42. Nd3 {[%clk 0:01:40]}  Nxa4 {[%clk 0:01:11]} 43. Nf4 {[%clk 0:01:40]}  Nc3 {[%clk 0:01:10]} 44. Nxh5 {[%clk 0:01:40]}  Ne4 {[%clk 0:01:10]} 45. Ng7 {[%clk 0:01:34]}  Ke7 {[%clk 0:01:07]} 46. h5 {[%clk 0:01:33]}  Kf7 {[%clk 0:01:07]} 47. Ne6 {[%clk 0:01:32]}  Ng3 {[%clk 0:01:04]} 48. Kf4 {[%clk 0:01:20]}  Nxh5+ {[%clk 0:00:59]} 49. Kg4 {[%clk 0:01:21]}  Ng7 {[%clk 0:00:56]} 50. Nf4 {[%clk 0:01:21]}  Ne8 {[%clk 0:00:53]} 51. Nxd5 {[%clk 0:01:21]}  b5 {[%clk 0:00:53]} 52. Kf4 {[%clk 0:01:21]}  Nd6 {[%clk 0:00:53]} 53. Nb4 {[%clk 0:01:19]}  Ke7 {[%clk 0:00:50]} 54. Nd3 {[%clk 0:01:10]}  Kd7 {[%clk 0:00:45]} 55. Nb4 {[%clk 0:01:09]}  Ne8 {[%clk 0:00:41]} 56. Nd5 {[%clk 0:01:07]}  Kd6 {[%clk 0:00:38]} 57. Ke4 {[%clk 0:01:04]}  Kc6 {[%clk 0:00:38]} 58. Nb4+ {[%clk 0:01:03]}  Kd6 {[%clk 0:00:37]} 59. Nd5 {[%clk 0:00:58]}  Kc6 {[%clk 0:00:37]} 60. Nb4+ {[%clk 0:00:58]}  Kd6 {[%clk 0:00:37]} 61. Nd5 {[%clk 0:00:58]} 1/2-1/2


[Site "https://www.chess.com"]

[Event "Titled Tuesday Blitz November 01 Early 2022"]
[White "Tokhirjonova, Gulrukhbegim"]
[Black "Molina, Roberto Junio Brito"]
[WhiteFideId "14203626"]
[BlackFideId "2109450"]
[WhiteElo "2236"]
[BlackElo "2388"]
[Result "0-1"]
[Round "08"]
[TimeControl "180+1"]
[Date "2022.11.02"]
[WhiteClock "0:00:16"]
[BlackClock "0:01:07"]

1. e4 {[%clk 0:03:00]}  c6 {[%clk 0:02:59]} 2. d4 {[%clk 0:02:58]}  d5 {[%clk 0:03:00]} 3. e5 {[%clk 0:02:56]}  Bf5 {[%clk 0:03:00]} 4. Nf3 {[%clk 0:02:56]}  e6 {[%clk 0:03:00]} 5. Be2 {[%clk 0:02:54]}  Bg6 {[%clk 0:02:59]} 6. O-O {[%clk 0:02:53]}  Nh6 {[%clk 0:02:59]} 7. c4 {[%clk 0:02:52]}  dxc4 {[%clk 0:02:58]} 8. Bxc4 {[%clk 0:02:52]}  Nf5 {[%clk 0:02:58]} 9. Nc3 {[%clk 0:02:51]}  Be7 {[%clk 0:02:57]} 10. g3 {[%clk 0:02:49]}  Bh5 {[%clk 0:02:57]} 11. Be3 {[%clk 0:02:39]}  O-O {[%clk 0:02:56]} 12. Be2 {[%clk 0:02:38]}  Nd7 {[%clk 0:02:54]} 13. Ne4 {[%clk 0:02:37]}  Nb6 {[%clk 0:02:54]} 14. Nc5 {[%clk 0:02:01]}  Rb8 {[%clk 0:02:51]} 15. Re1 {[%clk 0:01:38]}  Nd5 {[%clk 0:02:49]} 16. Qb3 {[%clk 0:01:34]}  b6 {[%clk 0:02:30]} 17. Ne4 {[%clk 0:01:33]}  Rc8 {[%clk 0:02:28]} 18. Rad1 {[%clk 0:01:31]}  Rc7 {[%clk 0:02:27]} 19. Kg2 {[%clk 0:01:31]}  Qa8 {[%clk 0:02:25]} 20. h3 {[%clk 0:01:27]}  Rd8 {[%clk 0:02:21]} 21. g4 {[%clk 0:01:24]}  Nfxe3+ {[%clk 0:02:21]} 22. fxe3 {[%clk 0:01:25]}  Bg6 {[%clk 0:02:21]} 23. Ng3 {[%clk 0:01:18]}  c5 {[%clk 0:02:17]} 24. Kh2 {[%clk 0:01:13]}  cxd4 {[%clk 0:02:13]} 25. Nxd4 {[%clk 0:01:03]}  Bc5 {[%clk 0:02:05]} 26. Bf3 {[%clk 0:01:01]}  Qc8 {[%clk 0:01:48]} 27. e4 {[%clk 0:00:54]}  Ne7 {[%clk 0:01:28]} 28. Nb5 {[%clk 0:00:51]}  Rcd7 {[%clk 0:01:28]} 29. Rxd7 {[%clk 0:00:30]}  Rxd7 {[%clk 0:01:29]} 30. Rd1 {[%clk 0:00:30]}  Nc6 {[%clk 0:01:27]} 31. Rxd7 {[%clk 0:00:22]}  Qxd7 {[%clk 0:01:28]} 32. Qc3 {[%clk 0:00:20]}  a6 {[%clk 0:01:25]} 33. Na3 {[%clk 0:00:18]}  Qd4 {[%clk 0:01:12]} 34. Nc4 {[%clk 0:00:16]}  Qg1# {[%clk 0:01:07]} 0-1


[Site "https://www.chess.com"]

[Event "Titled Tuesday Blitz November 01 Early 2022"]
[White "Villamayor, Buenaventura"]
[Black "Sokolovsky, Yahli"]
[WhiteFideId "5200393"]
[BlackFideId "2820242"]
[WhiteElo "2301"]
[BlackElo "2316"]
[Result "0-1"]
[Round "08"]
[TimeControl "180+1"]
[Date "2022.11.02"]
[WhiteClock "0:00:09"]
[BlackClock "0:00:11"]

1. e4 {[%clk 0:03:00]}  d6 {[%clk 0:02:59]} 2. d4 {[%clk 0:03:00]}  g6 {[%clk 0:03:00]} 3. Nc3 {[%clk 0:03:01]}  Bg7 {[%clk 0:03:00]} 4. f4 {[%clk 0:03:01]}  Nc6 {[%clk 0:02:57]} 5. d5 {[%clk 0:02:57]}  Nb8 {[%clk 0:02:56]} 6. Nf3 {[%clk 0:02:57]}  e6 {[%clk 0:02:53]} 7. Bc4 {[%clk 0:02:47]}  exd5 {[%clk 0:02:50]} 8. Nxd5 {[%clk 0:02:44]}  Nf6 {[%clk 0:02:44]} 9. Nxf6+ {[%clk 0:02:36]}  Qxf6 {[%clk 0:02:41]} 10. e5 {[%clk 0:02:26]}  dxe5 {[%clk 0:02:40]} 11. fxe5 {[%clk 0:02:27]}  Qb6 {[%clk 0:02:40]} 12. Qe2 {[%clk 0:01:46]}  O-O {[%clk 0:02:34]} 13. Be3 {[%clk 0:01:47]}  Qxb2 {[%clk 0:02:33]} 14. Bd4 {[%clk 0:01:47]}  Qa3 {[%clk 0:02:25]} 15. O-O {[%clk 0:01:44]}  Nc6 {[%clk 0:02:25]} 16. c3 {[%clk 0:01:22]}  Bg4 {[%clk 0:02:19]} 17. h3 {[%clk 0:01:20]}  Bxf3 {[%clk 0:01:40]} 18. Qxf3 {[%clk 0:01:20]}  Nxe5 {[%clk 0:01:35]} 19. Bxe5 {[%clk 0:01:14]}  Bxe5 {[%clk 0:01:36]} 20. Bxf7+ {[%clk 0:01:14]}  Kg7 {[%clk 0:01:36]} 21. Rae1 {[%clk 0:01:04]}  Qxc3 {[%clk 0:01:12]} 22. Qd5 {[%clk 0:00:51]}  Qd4+ {[%clk 0:00:48]} 23. Kh1 {[%clk 0:00:50]}  Bf6 {[%clk 0:00:19]} 24. Qxb7 {[%clk 0:00:28]}  Rad8 {[%clk 0:00:10]} 25. Be6 {[%clk 0:00:25]}  Qb6 {[%clk 0:00:10]} 26. Qe4 {[%clk 0:00:22]}  Rde8 {[%clk 0:00:09]} 27. Qc4 {[%clk 0:00:21]}  Re7 {[%clk 0:00:08]} 28. Bd5 {[%clk 0:00:20]}  Rfe8 {[%clk 0:00:08]} 29. Rxe7+ {[%clk 0:00:20]}  Rxe7 {[%clk 0:00:09]} 30. Qg4 {[%clk 0:00:18]}  Qd6 {[%clk 0:00:08]} 31. Bb3 {[%clk 0:00:17]}  Qe5 {[%clk 0:00:07]} 32. Qc8 {[%clk 0:00:17]}  Kh6 {[%clk 0:00:06]} 33. Qf8+ {[%clk 0:00:17]}  Bg7 {[%clk 0:00:06]} 34. Qf3 {[%clk 0:00:16]}  Qg5 {[%clk 0:00:06]} 35. Qf2 {[%clk 0:00:13]}  Re3 {[%clk 0:00:04]} 36. h4 {[%clk 0:00:10]}  Qg3 {[%clk 0:00:05]} 37. Qxg3 {[%clk 0:00:05]}  Rxg3 {[%clk 0:00:06]} 38. Rf7 {[%clk 0:00:06]}  Rc3 {[%clk 0:00:06]} 39. g4 {[%clk 0:00:06]}  Rc1+ {[%clk 0:00:06]} 40. Kg2 {[%clk 0:00:06]}  Be5 {[%clk 0:00:06]} 41. g5+ {[%clk 0:00:07]}  Kh5 {[%clk 0:00:07]} 42. Rxh7+ {[%clk 0:00:06]}  Kg4 {[%clk 0:00:07]} 43. Be6+ {[%clk 0:00:07]}  Kf4 {[%clk 0:00:08]} 44. Rf7+ {[%clk 0:00:07]}  Ke4 {[%clk 0:00:08]} 45. Rg7 {[%clk 0:00:07]}  Rc2+ {[%clk 0:00:09]} 46. Kh3 {[%clk 0:00:07]}  Bxg7 {[%clk 0:00:09]} 47. Bf7 {[%clk 0:00:08]}  Kf4 {[%clk 0:00:09]} 48. Bxg6 {[%clk 0:00:08]}  Rc1 {[%clk 0:00:10]} 49. h5 {[%clk 0:00:08]}  Rh1+ {[%clk 0:00:10]} 50. Kg2 {[%clk 0:00:08]}  Rh4 {[%clk 0:00:10]} 51. h6 {[%clk 0:00:09]}  Bxh6 {[%clk 0:00:10]} 52. gxh6 {[%clk 0:00:09]}  Rg4+ {[%clk 0:00:11]} 0-1


[Site "https://www.chess.com"]

[Event "Titled Tuesday Blitz November 01 Early 2022"]
[White "Wessendorf, Thomas, Dr."]
[Black "Pham, Khoi"]
[WhiteFideId "4604270"]
[BlackFideId "1054988"]
[WhiteElo "2280"]
[BlackElo "2472"]
[Result "0-1"]
[Round "08"]
[TimeControl "180+1"]
[Date "2022.11.02"]
[WhiteClock "0:00:04"]
[BlackClock "0:00:29"]

1. e4 {[%clk 0:02:58]}  e6 {[%clk 0:02:57]} 2. d4 {[%clk 0:02:57]}  d5 {[%clk 0:02:58]} 3. Nd2 {[%clk 0:02:57]}  c5 {[%clk 0:02:57]} 4. Ngf3 {[%clk 0:02:56]}  cxd4 {[%clk 0:02:56]} 5. exd5 {[%clk 0:02:56]}  Qxd5 {[%clk 0:02:55]} 6. Bc4 {[%clk 0:02:56]}  Qd6 {[%clk 0:02:51]} 7. O-O {[%clk 0:02:56]}  Nf6 {[%clk 0:02:51]} 8. Nb3 {[%clk 0:02:55]}  Be7 {[%clk 0:02:51]} 9. Nbxd4 {[%clk 0:02:53]}  O-O {[%clk 0:02:45]} 10. Qe2 {[%clk 0:02:41]}  a6 {[%clk 0:02:41]} 11. a4 {[%clk 0:02:35]}  b6 {[%clk 0:02:36]} 12. Rd1 {[%clk 0:02:33]}  Qc7 {[%clk 0:02:35]} 13. Ne5 {[%clk 0:02:25]}  Bb7 {[%clk 0:02:19]} 14. Bf4 {[%clk 0:02:12]}  Qc8 {[%clk 0:02:11]} 15. Nxf7 {[%clk 0:02:02]}  Rxf7 {[%clk 0:02:07]} 16. Bxe6 {[%clk 0:02:00]}  Qf8 {[%clk 0:02:01]} 17. Nf5 {[%clk 0:01:49]}  Nc6 {[%clk 0:01:52]} 18. Bxf7+ {[%clk 0:01:29]}  Qxf7 {[%clk 0:01:53]} 19. Bd6 {[%clk 0:01:04]}  Bf8 {[%clk 0:01:42]} 20. Bxf8 {[%clk 0:01:01]}  Rxf8 {[%clk 0:01:43]} 21. Rd6 {[%clk 0:00:57]}  Nd5 {[%clk 0:01:27]} 22. Ng3 {[%clk 0:00:31]}  Nf4 {[%clk 0:01:19]} 23. Qd2 {[%clk 0:00:26]}  Ne5 {[%clk 0:01:18]} 24. f3 {[%clk 0:00:18]}  Nc4 {[%clk 0:00:52]} 25. Qd4 {[%clk 0:00:12]}  Nxd6 {[%clk 0:00:50]} 26. Qxd6 {[%clk 0:00:12]}  Qc4 {[%clk 0:00:40]} 27. Rd1 {[%clk 0:00:08]}  Qxc2 {[%clk 0:00:36]} 28. Rd2 {[%clk 0:00:06]}  Qc1+ {[%clk 0:00:36]} 29. Kf2 {[%clk 0:00:06]}  Qc5+ {[%clk 0:00:26]} 30. Qxc5 {[%clk 0:00:06]}  bxc5 {[%clk 0:00:27]} 31. Ne4 {[%clk 0:00:06]}  Bxe4 {[%clk 0:00:27]} 32. fxe4 {[%clk 0:00:07]}  Ne6+ {[%clk 0:00:27]} 33. Ke3 {[%clk 0:00:07]}  Nd4 {[%clk 0:00:27]} 34. Rd3 {[%clk 0:00:06]}  Kf7 {[%clk 0:00:27]} 35. Rc3 {[%clk 0:00:06]}  Ne6 {[%clk 0:00:27]} 36. b3 {[%clk 0:00:06]}  Rb8 {[%clk 0:00:26]} 37. Kf3 {[%clk 0:00:05]}  Kf6 {[%clk 0:00:27]} 38. g3 {[%clk 0:00:05]}  Ke5 {[%clk 0:00:28]} 39. Rd3 {[%clk 0:00:05]}  Rxb3 {[%clk 0:00:27]} 40. Rxb3 {[%clk 0:00:04]}  Nd4+ {[%clk 0:00:28]} 41. Ke3 {[%clk 0:00:04]}  Nxb3 {[%clk 0:00:28]} 42. Kd3 {[%clk 0:00:04]}  Na5 {[%clk 0:00:29]} 43. Kc3 {[%clk 0:00:04]}  Kxe4 {[%clk 0:00:29]} 0-1


[Site "https://www.chess.com"]

[Event "Titled Tuesday Blitz November 01 Early 2022"]
[White "Winkels, Marcel"]
[Black "Quirke, Jeffrey"]
[WhiteFideId "1003887"]
[BlackFideId "2013029"]
[WhiteElo "1900"]
[BlackElo "2188"]
[Result "0-1"]
[Round "08"]
[TimeControl "180+1"]
[Date "2022.11.02"]
[WhiteClock "0:00:20"]
[BlackClock "0:00:14"]

1. d4 {[%clk 0:03:00]}  d5 {[%clk 0:02:59]} 2. Bf4 {[%clk 0:03:01]}  Nf6 {[%clk 0:02:56]} 3. Nc3 {[%clk 0:02:59]}  Bf5 {[%clk 0:02:51]} 4. e3 {[%clk 0:02:56]}  e6 {[%clk 0:02:51]} 5. Bd3 {[%clk 0:02:57]}  Bxd3 {[%clk 0:02:48]} 6. Qxd3 {[%clk 0:02:56]}  a6 {[%clk 0:02:48]} 7. Nf3 {[%clk 0:02:54]}  c5 {[%clk 0:02:45]} 8. O-O {[%clk 0:02:48]}  Nc6 {[%clk 0:02:43]} 9. Ne5 {[%clk 0:02:47]}  cxd4 {[%clk 0:02:39]} 10. exd4 {[%clk 0:02:47]}  Be7 {[%clk 0:02:34]} 11. Rfe1 {[%clk 0:02:21]}  Rc8 {[%clk 0:02:31]} 12. a3 {[%clk 0:02:20]}  O-O {[%clk 0:02:31]} 13. Ne2 {[%clk 0:02:14]}  b5 {[%clk 0:02:27]} 14. c3 {[%clk 0:02:13]}  Na5 {[%clk 0:02:23]} 15. Ng3 {[%clk 0:02:13]}  Nc4 {[%clk 0:02:21]} 16. Qe2 {[%clk 0:02:08]}  Nd6 {[%clk 0:01:46]} 17. a4 {[%clk 0:02:01]}  Qb6 {[%clk 0:01:36]} 18. axb5 {[%clk 0:02:00]}  axb5 {[%clk 0:01:36]} 19. Nh5 {[%clk 0:01:55]}  Nxh5 {[%clk 0:01:27]} 20. Qxh5 {[%clk 0:01:54]}  Qb7 {[%clk 0:01:17]} 21. Nd3 {[%clk 0:01:37]}  Ne4 {[%clk 0:01:05]} 22. Ra5 {[%clk 0:01:22]}  b4 {[%clk 0:01:03]} 23. f3 {[%clk 0:01:20]}  Nf6 {[%clk 0:01:02]} 24. Qh4 {[%clk 0:01:13]}  bxc3 {[%clk 0:01:01]} 25. bxc3 {[%clk 0:01:13]}  Rxc3 {[%clk 0:01:00]} 26. Ne5 {[%clk 0:01:13]}  Qb4 {[%clk 0:00:51]} 27. Raa1 {[%clk 0:00:58]}  Qxd4+ {[%clk 0:00:50]} 28. Kh1 {[%clk 0:00:59]}  Ne4 {[%clk 0:00:35]} 29. Rxe4 {[%clk 0:00:43]}  dxe4 {[%clk 0:00:35]} 30. Qxe7 {[%clk 0:00:42]}  Rc2 {[%clk 0:00:16]} 31. Qh4 {[%clk 0:00:20]}  Qxa1+ {[%clk 0:00:14]} 0-1


[Site "https://www.chess.com"]